bitfinex/quotes_SOLUSD_20220114
["timestamp","ask_amount","ask_price","bid_price","bid_amount"]
[1642125659261,0.26,147.55,147.47,27.57021299]
[1642125659463,12.06612395,147.57,147.47,27.57021299]
[1642125659676,12.32612395,147.57,147.47,27.57021299]
[1642125660167,12.32612395,147.57,147.49,10.1673]
[1642125660568,12.57612395,147.57,147.47,27.31021299]
[1642125660867,12.64612395,147.57,147.46,9.78]
[1642125661269,23.4837,147.56,147.46,9.78]
[1642125661469,10.1724,147.51,147.46,9.78]
[1642125661867,16.1724,147.51,147.46,9.78]
[1642125662067,16.1724,147.51,147.46,10.03]
[1642125662768,16.4224,147.51,147.46,9.78]
[1642125663068,2.712,147.5,147.46,9.78]
[1642125663266,10.1729,147.5,147.46,9.78]
[1642125663467,18.8849,147.5,147.46,9.78]
[1642125663671,18.8849,147.5,147.42,9.78]
[1642125663898,19.1449,147.5,147.42,9.78]
[1642125664069,19.1449,147.5,147.42,10.04]
[1642125664271,16.4329,147.5,147.42,10.04]
[1642125664873,16.4329,147.5,147.42,10.29]
[1642125665072,2.712,147.49,147.42,10.29]
[1642125665473,19.1356,147.49,147.42,10.29]
[1642125665675,16.4236,147.49,147.42,10.29]
[1642125665876,16.1736,147.49,147.42,10.29]
[1642125666073,6.0,147.49,147.42,8.59451001]
[1642125666480,8.712,147.51,147.42,8.59451001]
[1642125666674,18.8848,147.51,147.42,8.59451001]
[1642125666874,19.1348,147.51,147.42,8.59451001]
[1642125667374,18.8848,147.51,147.42,37.53775045]
[1642125667774,18.8848,147.51,147.42,47.71045045]
[1642125667975,16.1728,147.51,147.42,47.71045045]
[1642125668880,6.0,147.51,147.42,47.78045045]
[1642125669078,0.26,147.51,147.42,47.78045045]
[1642125669478,34.1726,147.52,147.42,47.78045045]
[1642125670778,33.9126,147.52,147.42,47.78045045]
[1642125670979,31.2006,147.52,147.42,47.78045045]
[1642125672011,31.4606,147.52,147.42,47.78045045]
[1642125673214,31.4606,147.52,147.42,115.67045045]
[1642125674817,31.2106,147.52,147.42,115.67045045]
[1642125675317,6.0,147.52,147.42,115.67045045]
[1642125675522,3.35512395,147.54,147.42,115.67045045]
[1642125675720,3.35512395,147.54,147.48,10.1677]
[1642125676119,2.711,147.58,147.48,10.6777]
[1642125676120,3.35512395,147.56,147.48,10.6777]
[1642125676521,3.35512395,147.56,147.49,77.67]
[1642125676920,3.35512395,147.56,147.5,22.80121123]
[1642125677120,3.35512395,147.56,147.5,32.58121123]
[1642125677319,3.35512395,147.56,147.5,33.09121123]
[1642125677720,3.35512395,147.59,147.5,33.16121123]
[1642125678019,3.60512395,147.59,147.5,33.16121123]
[1642125678220,3.60512395,147.59,147.52,10.1648]
[1642125678421,9.60512395,147.59,147.52,10.1648]
[1642125678620,9.60512395,147.59,147.52,10.4148]
[1642125678821,6.25,147.59,147.52,10.4148]
[1642125679023,6.51,147.59,147.52,10.4148]
[1642125679220,0.51,147.59,147.52,10.4148]
[1642125679422,6.51,147.59,147.52,10.4148]
[1642125679623,2.71,147.58,147.52,10.4148]
[1642125679823,2.71,147.58,147.52,0.25]
[1642125680024,8.71,147.58,147.5,56.54711123]
[1642125680226,6.0,147.58,147.5,56.54711123]
[1642125680424,2.711,147.57,147.5,33.7459]
[1642125680624,2.711,147.57,147.5,10.03]
[1642125680825,10.1691,147.56,147.5,10.03]
[1642125681026,2.711,147.55,147.5,10.03]
[1642125681428,2.711,147.55,147.5,9.78]
[1642125681630,8.961,147.55,147.47,9.78]
[1642125682660,9.221,147.55,147.47,9.78]
[1642125682859,9.221,147.55,147.47,10.03]
[1642125683260,19.1305,147.55,147.47,10.03]
[1642125683458,19.1305,147.55,147.47,9.78]
[1642125684560,19.3905,147.55,147.47,9.78]
[1642125684960,19.3905,147.55,147.47,10.29]
[1642125685161,19.1405,147.55,147.47,10.29]
[1642125685760,6.26,147.55,147.47,10.29]
[1642125685961,3.35512395,147.56,147.47,10.29]
[1642125686162,3.35512395,147.56,147.48,67.89]
[1642125686463,3.35512395,147.57,147.5,22.54013889]
[1642125686665,3.35512395,147.57,147.51,9.78]
[1642125687062,3.35512395,147.57,147.51,10.03]
[1642125687262,9.35512395,147.57,147.51,10.03]
[1642125687462,2.711,147.56,147.51,10.03]
[1642125687963,10.1708,147.54,147.46,9.78]
[1642125688161,15.8178,147.54,147.46,9.78]
[1642125688364,36.6236,147.53,147.45,28.97902356]
[1642125688563,6.0,147.53,147.45,28.97902356]
[1642125688862,6.0,147.53,147.45,25.11487732]
[1642125689265,24.1117,147.55,147.45,25.36487732]
[1642125689464,2.711,147.54,147.45,25.36487732]
[1642125689963,8.961,147.54,147.45,0.25]
[1642125690366,13.1322,147.54,147.44,10.03]
[1642125690563,19.1322,147.54,147.44,10.03]
[1642125690763,19.1322,147.54,147.45,29.83451713]
[1642125690964,19.1322,147.54,147.45,30.08451713]
[1642125691564,19.3922,147.54,147.45,30.08451713]
[1642125692464,19.3922,147.54,147.45,0.25]
[1642125692669,42.2494,147.54,147.45,0.25]
[1642125692865,42.2494,147.54,147.44,10.03]
[1642125693867,45.60452395,147.54,147.44,10.03]
[1642125695268,45.60452395,147.54,147.44,9.78]
[1642125695469,113.56452395,147.54,147.41,33.8118]
[1642125695669,45.67452395,147.54,147.41,34.0618]
[1642125695868,45.67452395,147.54,147.41,10.03]
[1642125696069,62.67651916,147.54,147.41,9.78]
[1642125696271,62.67651916,147.54,147.38,28.63124624]
[1642125696570,62.67651916,147.54,147.38,25.0171]
[1642125696571,10.1779,147.47,147.38,25.0171]
[1642125696770,26.0853,147.49,147.38,29.89102717]
[1642125697072,26.3353,147.49,147.38,29.89102717]
[1642125697371,32.3353,147.49,147.38,29.89102717]
[1642125697971,42.5117,147.49,147.38,29.89102717]
[1642125699470,32.3353,147.49,147.38,29.89102717]
[1642125699971,32.3353,147.49,147.38,53.37322717]
[1642125700470,32.5953,147.49,147.38,53.37322717]
[1642125701175,67.89,147.48,147.38,29.89102717]
[1642125701474,2.713,147.47,147.38,29.89102717]
[1642125701673,2.963,147.47,147.38,29.89102717]
[1642125701872,8.963,147.47,147.38,29.89102717]
[1642125702275,6.25,147.47,147.38,29.89102717]
[1642125702574,0.25,147.47,147.38,29.89102717]
[1642125702772,6.25,147.47,147.38,29.89102717]
[1642125703372,0.25,147.47,147.38,29.89102717]
[1642125704375,19.1397,147.48,147.38,29.89102717]
[1642125705273,16.4267,147.48,147.38,29.89102717]
[1642125705472,16.6867,147.48,147.38,29.89102717]
[1642125705674,6.0,147.48,147.38,63.19712717]
[1642125705872,6.0,147.48,147.38,63.45712717]
[1642125706073,2.713,147.48,147.38,63.45712717]
[1642125706472,2.713,147.48,147.38,10.1754]
[1642125706473,8.713,147.48,147.38,10.1754]
[1642125706673,8.713,147.48,147.37,9.78]
[1642125706973,23.6291,147.47,147.37,9.78]
[1642125707272,2.713,147.46,147.37,9.78]
[1642125707476,2.963,147.46,147.37,9.78]
[1642125707674,8.963,147.46,147.37,9.78]
[1642125708674,9.033,147.46,147.33,36.92794624]
[1642125708902,23.0879,147.45,147.33,13.64414624]
[1642125709075,2.713,147.44,147.33,13.64414624]
[1642125709275,10.1804,147.43,147.33,13.64414624]
[1642125709478,2.714,147.42,147.33,9.78]
[1642125709677,27.4069,147.42,147.33,9.78]
[1642125709878,33.6569,147.42,147.33,9.78]
[1642125711979,44.0978,147.42,147.33,9.78]
[1642125712179,44.0978,147.42,147.31,23.3053]
[1642125712582,44.0978,147.42,147.3,3.86414624]
[1642125712779,44.0978,147.42,147.3,4.11414624]
[1642125713178,10.1829,147.39,147.3,3.86414624]
[1642125713578,2.714,147.38,147.29,13.64414624]
[1642125713781,2.714,147.38,147.29,13.89414624]
[1642125713980,8.964,147.38,147.29,13.89414624]
[1642125714784,8.964,147.38,147.29,10.03]
[1642125714983,67.89,147.37,147.29,10.03]
[1642125715183,2.714,147.36,147.29,10.03]
[1642125715382,8.715,147.37,147.29,10.03]
[1642125715582,6.25,147.37,147.29,10.03]
[1642125715781,8.964,147.37,147.29,10.03]
[1642125715982,6.25,147.37,147.29,10.03]
[1642125716424,0.25,147.37,147.29,10.03]
[1642125716620,6.25,147.37,147.29,20.2116]
[1642125716819,6.0,147.37,147.29,20.2116]
[1642125717018,6.51,147.37,147.29,20.2116]
[1642125717221,2.714,147.36,147.29,20.2116]
[1642125717518,2.964,147.36,147.29,9.78]
[1642125717720,8.964,147.36,147.29,9.78]
[1642125720622,8.964,147.36,147.28,23.482]
[1642125720823,9.224,147.36,147.28,23.482]
[1642125721327,0.51,147.36,147.28,33.9141]
[1642125721523,6.25,147.38,147.28,33.9141]
[1642125721723,2.714,147.37,147.28,33.9141]
[1642125721925,2.714,147.37,147.28,34.1741]
[1642125722122,0.25,147.38,147.28,43.9541]
[1642125722523,31.1238,147.4,147.28,43.6941]
[1642125722926,2.714,147.39,147.28,43.6941]
[1642125723124,2.714,147.39,147.29,7.75365709]
[1642125723325,9.224,147.39,147.29,7.75365709]
[1642125723523,8.964,147.39,147.3,10.1809]
[1642125725025,16.4329,147.39,147.3,0.25]
[1642125725225,2.714,147.38,147.28,37.12614624]
[1642125725427,2.714,147.38,147.28,37.37614624]
[1642125725625,8.964,147.38,147.28,37.37614624]
[1642125725826,9.224,147.38,147.28,33.512]
[1642125726032,6.51,147.38,147.28,33.512]
[1642125726231,6.51,147.38,147.28,43.6942]
[1642125726428,2.714,147.37,147.28,43.6942]
[1642125726828,6.25,147.37,147.28,43.6942]
[1642125727029,30.122,147.37,147.28,43.6942]
[1642125727228,30.122,147.37,147.28,33.262]
[1642125728430,40.3064,147.37,147.28,33.262]
[1642125728630,40.3064,147.37,147.28,33.512]
[1642125729532,40.5664,147.37,147.26,3.86414624]
[1642125729731,10.1858,147.35,147.25,27.54504624]
[1642125729930,16.1858,147.35,147.25,27.54504624]
[1642125730132,16.4358,147.35,147.25,27.54504624]
[1642125730330,16.4358,147.35,147.26,26.48506852]
[1642125730731,16.4358,147.35,147.26,26.73506852]
[1642125730937,6.25,147.35,147.26,30.88588743]
[1642125731333,0.25,147.35,147.26,30.88588743]
[1642125731533,6.0,147.35,147.26,30.88588743]
[1642125731733,6.25,147.35,147.26,30.88588743]
[1642125731934,2.715,147.37,147.26,47.06938743]
[1642125732136,2.715,147.4,147.27,13.67081891]
[1642125732333,3.35512395,147.41,147.27,13.67081891]
[1642125732536,3.35512395,147.41,147.28,22.6007]
[1642125732735,3.35512395,147.41,147.29,9.78]
[1642125732935,27.4863,147.4,147.29,10.03]
[1642125733240,37.6684,147.4,147.29,13.89414624]
[1642125733438,43.9184,147.4,147.29,13.89414624]
[1642125734036,44.1784,147.4,147.29,13.89414624]
[1642125734237,44.1784,147.4,147.29,10.03]
[1642125734439,44.1784,147.4,147.29,20.2114]
[1642125734838,44.1784,147.4,147.29,10.03]
[1642125735273,44.1784,147.4,147.29,9.78]
[1642125735473,44.2484,147.4,147.29,9.78]
[1642125736274,1.64999521,147.39,147.26,26.48506852]
[1642125736473,10.1861,147.35,147.26,26.48506852]
[1642125736874,16.4361,147.35,147.26,26.48506852]
[1642125737074,6.25,147.35,147.26,26.48506852]
[1642125737475,6.51,147.35,147.26,26.48506852]
[1642125737675,6.51,147.35,147.26,26.73506852]
[1642125738274,0.51,147.35,147.26,36.91866852]
[1642125738477,6.0,147.35,147.26,61.16516852]
[1642125738977,0.25,147.35,147.26,61.16516852]
[1642125739575,0.25,147.35,147.26,61.42516852]
[1642125739776,0.25,147.35,147.27,13.67047694]
[1642125739976,0.25,147.36,147.31,10.1797]
[1642125740176,0.25,147.36,147.32,25.6455297]
[1642125740376,2.714,147.38,147.32,25.6455297]
[1642125740582,8.964,147.38,147.32,25.6455297]
[1642125740779,6.25,147.38,147.32,25.6455297]
[1642125741278,0.25,147.38,147.32,25.6455297]
[1642125741578,6.25,147.38,147.32,25.6455297]
[1642125741778,6.0,147.38,147.32,25.6455297]
[1642125741977,0.25,147.38,147.32,25.6455297]
[1642125742379,0.25,147.38,147.3,23.8045]
[1642125742580,0.25,147.38,147.3,24.0545]
[1642125743081,2.964,147.39,147.3,24.0545]
[1642125743284,8.964,147.39,147.3,24.0545]
[1642125743485,8.964,147.39,147.31,30.30989707]
[1642125745284,9.224,147.39,147.31,30.30989707]
[1642125748286,9.224,147.39,147.31,40.49009707]
[1642125750889,9.224,147.39,147.31,30.30989707]
[1642125752291,9.224,147.39,147.3,24.0545]
[1642125752494,9.224,147.39,147.3,34.2353]
[1642125752892,9.224,147.39,147.3,24.0545]
[1642125753691,19.4065,147.39,147.3,24.0545]
[1642125753923,87.2965,147.39,147.3,0.25]
[1642125754328,87.2965,147.39,147.29,39.41971358]
[1642125754723,87.2965,147.39,147.29,10.03]
[1642125755023,87.2965,147.39,147.27,3.86414624]
[1642125755224,88.94649521,147.39,147.27,0.25]
[1642125755423,89.01649521,147.39,147.26,27.68984624]
[1642125755625,89.01649521,147.39,147.27,29.93412077]
[1642125756023,87.3665,147.39,147.27,29.93412077]
[1642125756226,87.2965,147.39,147.27,29.93412077]
[1642125756427,87.2965,147.39,147.28,24.4963]
[1642125756826,81.2965,147.39,147.28,24.7463]
[1642125757227,13.4065,147.39,147.28,24.7463]
[1642125758030,19.4065,147.39,147.28,24.7463]
[1642125758731,87.2965,147.39,147.28,24.7463]
[1642125759533,87.2965,147.39,147.28,24.4963]
[1642125759735,87.3665,147.39,147.28,24.4963]
[1642125760535,87.3665,147.39,147.25,37.32504624]
[1642125760737,9.78,147.38,147.25,13.64414624]
[1642125761035,10.1869,147.32,147.25,13.64414624]
[1642125761239,10.1869,147.32,147.25,9.78]
[1642125761442,16.4369,147.32,147.25,9.78]
[1642125762437,6.25,147.32,147.25,9.78]
[1642125762838,0.25,147.32,147.25,10.03]
[1642125763036,6.0,147.32,147.25,10.03]
[1642125763536,0.25,147.32,147.25,10.03]
[1642125763736,0.25,147.32,147.25,0.25]
[1642125763939,0.25,147.32,147.23,4.11414624]
[1642125764137,0.25,147.32,147.23,14.29984624]
[1642125764539,16.4363,147.33,147.23,14.29984624]
[1642125764738,16.6963,147.33,147.24,3.89129339]
[1642125765039,16.6963,147.33,147.24,28.23909339]
[1642125766038,16.6963,147.33,147.24,24.3478]
[1642125766541,16.4363,147.33,147.24,24.3478]
[1642125766840,6.25,147.33,147.24,24.3478]
[1642125767039,0.25,147.33,147.24,34.5328]
[1642125767440,37.8091,147.35,147.24,34.5328]
[1642125768141,44.0691,147.35,147.24,34.5328]
[1642125768539,44.0691,147.35,147.24,24.3478]
[1642125769142,111.9591,147.35,147.24,24.3478]
[1642125769340,109.2441,147.35,147.24,24.3478]
[1642125769540,2.715,147.34,147.24,24.3478]
[1642125769941,8.965,147.34,147.24,24.3478]
[1642125770143,8.965,147.34,147.24,34.5329]
[1642125770842,8.965,147.34,147.25,3.89119993]
[1642125771042,8.965,147.34,147.25,4.14119993]
[1642125771746,8.965,147.34,147.25,0.25]
[1642125772143,8.965,147.34,147.25,10.1843]
[1642125772343,8.965,147.34,147.27,1.9455887]
[1642125772547,8.965,147.34,147.27,30.9183174]
[1642125773344,9.225,147.34,147.27,30.9183174]
[1642125773844,9.225,147.34,147.27,2.1955887]
[1642125774946,77.115,147.34,147.27,2.1955887]
[1642125775346,9.225,147.34,147.27,2.1955887]
[1642125777947,3.225,147.34,147.27,2.1955887]
[1642125779049,0.51,147.34,147.27,2.1955887]
[1642125779454,41.0935,147.35,147.27,2.1955887]
[1642125779650,43.8085,147.35,147.27,2.1955887]
[1642125780378,30.6586,147.35,147.27,2.1955887]
[1642125780579,28.87748264,147.37,147.27,12.3784887]
[1642125780779,6.0,147.35,147.27,12.3784887]
[1642125780979,32.16248264,147.37,147.27,12.3784887]
[1642125781180,32.16248264,147.37,147.29,31.09664422]
[1642125781383,30.2828,147.37,147.29,33.04223292]
[1642125781584,30.2828,147.37,147.29,33.29223292]
[1642125781979,30.5328,147.37,147.29,33.29223292]
[1642125782582,40.7164,147.37,147.29,33.29223292]
[1642125782784,40.7164,147.37,147.29,1.9455887]
[1642125783081,40.9764,147.37,147.29,2.1955887]
[1642125784789,30.7928,147.37,147.29,2.1955887]
[1642125785491,6.25,147.37,147.29,2.1955887]
[1642125785887,0.25,147.37,147.29,1.9455887]
[1642125786186,6.0,147.37,147.29,0.25009871]
[1642125786587,0.25,147.37,147.28,54.86878035]
[1642125786788,0.51,147.37,147.28,54.86878035]
[1642125786986,0.25,147.37,147.28,54.86878035]
[1642125787191,0.25,147.37,147.29,10.1815]
[1642125787389,2.964,147.37,147.29,10.1815]
[1642125787594,6.25,147.37,147.29,10.1815]
[1642125788199,0.25,147.37,147.29,10.1815]
[1642125788394,2.964,147.38,147.29,10.1815]
[1642125788593,8.964,147.38,147.29,10.1815]
[1642125788792,24.2972,147.37,147.29,10.1815]
[1642125788995,30.5472,147.37,147.28,54.86878035]
[1642125789193,30.5472,147.37,147.28,55.11878035]
[1642125790995,6.25,147.37,147.28,65.30088035]
[1642125791198,6.25,147.37,147.28,55.11878035]
[1642125791425,0.25,147.37,147.28,55.11878035]
[1642125791595,6.25,147.37,147.28,55.11878035]
[1642125791995,6.51,147.37,147.28,55.11878035]
[1642125792195,0.51,147.37,147.28,65.30098035]
[1642125792397,2.715,147.36,147.28,55.11878035]
[1642125792600,2.965,147.36,147.28,55.11878035]
[1642125792800,0.51,147.36,147.28,54.86878035]
[1642125792999,2.715,147.35,147.28,54.86878035]
[1642125793397,0.25,147.35,147.28,54.86878035]
[1642125794007,0.25,147.35,147.28,23.9693]
[1642125794600,8.143,147.36,147.28,23.9693]
[1642125795002,14.143,147.36,147.28,23.9693]
[1642125795302,10.1853,147.35,147.28,23.9693]
[1642125795498,2.715,147.34,147.28,23.9693]
[1642125795900,8.965,147.34,147.28,23.9693]
[1642125796100,8.965,147.34,147.24,13.64414624]
[1642125796302,22.9711,147.33,147.25,23.4612]
[1642125796500,29.2211,147.33,147.25,23.7112]
[1642125796900,29.2211,147.33,147.26,26.73980603]
[1642125797101,29.2211,147.33,147.26,26.98980603]
[1642125797499,29.4811,147.33,147.26,26.98980603]
[1642125797700,29.2311,147.33,147.26,26.98980603]
[1642125798004,6.26,147.33,147.26,26.98980603]
[1642125798202,30.0495,147.37,147.26,26.98980603]
[1642125798400,30.2995,147.37,147.27,24.5967]
[1642125798600,30.2995,147.37,147.27,24.8467]
[1642125798808,2.715,147.36,147.27,24.8467]
[1642125799030,23.1848,147.35,147.27,24.8467]
[1642125799430,29.6948,147.35,147.27,24.8467]
[1642125801531,29.4448,147.35,147.27,24.8467]
[1642125802932,29.6948,147.35,147.27,24.8467]
[1642125804536,39.8801,147.35,147.27,24.8467]
[1642125805641,107.7701,147.35,147.27,24.8467]
[1642125805839,116.1411,147.35,147.27,24.8467]
[1642125808143,48.2511,147.35,147.27,24.8467]
[1642125808342,29.6948,147.35,147.27,24.8467]
[1642125809843,32.4098,147.35,147.27,24.8467]
[1642125810445,29.6948,147.35,147.27,24.8467]
[1642125812143,29.4348,147.35,147.27,24.8467]
[1642125812345,6.0,147.35,147.27,24.8467]
[1642125812549,6.0,147.36,147.27,25.1067]
[1642125812746,6.0,147.35,147.27,25.1067]
[1642125812944,6.0,147.36,147.27,25.1067]
[1642125813145,6.0,147.36,147.28,0.07]
[1642125813346,33.415,147.4,147.28,0.07]
[1642125813544,24.7,147.4,147.3,10.1808]
[1642125813748,9.99,147.41,147.3,17.4698]
[1642125813945,9.99,147.41,147.3,17.9798]
[1642125814145,9.99,147.41,147.31,0.07]
[1642125814546,9.99,147.41,147.31,17.524]
[1642125814747,9.99,147.41,147.32,24.81427872]
[1642125814949,9.99,147.41,147.33,9.78]
[1642125815348,9.99,147.41,147.33,10.29]
[1642125815748,9.99,147.41,147.33,16.29]
[1642125815948,10.25,147.41,147.33,16.29]
[1642125816148,10.25,147.41,147.35,10.1768]
[1642125816547,10.25,147.41,147.35,10.4268]
[1642125817350,10.25,147.41,147.36,0.07]
[1642125817351,10.5,147.41,147.36,0.07]
[1642125817553,2.713,147.4,147.36,0.07]
[1642125817749,16.25,147.41,147.36,0.07]
[1642125818152,10.25,147.41,147.36,0.07]
[1642125818553,9.99,147.41,147.36,10.1766]
[1642125818951,9.99,147.41,147.36,10.4266]
[1642125821255,10.5,147.41,147.36,10.4266]
[1642125821454,10.25,147.41,147.36,10.4266]
[1642125822157,9.99,147.41,147.36,10.4266]
[1642125822356,9.99,147.41,147.36,10.6866]
[1642125822557,9.99,147.41,147.37,0.07]
[1642125822756,9.99,147.41,147.39,10.1736]
[1642125822956,9.99,147.41,147.4,30.34927833]
[1642125823559,9.99,147.41,147.4,30.59927833]
[1642125824158,9.99,147.41,147.4,30.34927833]
[1642125824358,9.99,147.41,147.4,30.59927833]
[1642125824758,9.99,147.41,147.4,30.34927833]
[1642125825359,9.99,147.41,147.35,9.78]
[1642125825562,9.99,147.41,147.37,0.25]
[1642125826361,9.99,147.41,147.37,28.55186598]
[1642125827361,9.99,147.41,147.37,38.72786598]
[1642125828763,10.25,147.41,147.37,38.72786598]
[1642125829164,9.99,147.41,147.37,38.72786598]
[1642125829465,10.25,147.41,147.37,38.72786598]
[1642125833799,10.25,147.41,147.37,28.55186598]
[1642125836300,10.25,147.41,147.37,38.72776598]
[1642125839003,10.25,147.41,147.37,28.55186598]
[1642125842505,10.25,147.41,147.37,38.72786598]
[1642125844208,10.25,147.41,147.37,28.55186598]
[1642125846007,9.99,147.41,147.37,28.55186598]
[1642125846307,9.99,147.41,147.37,38.72746598]
[1642125846509,9.99,147.41,147.37,38.98746598]
[1642125846810,3.35512395,147.48,147.38,33.0]
[1642125847007,2.713,147.47,147.39,24.4108]
[1642125847410,2.963,147.47,147.39,24.9208]
[1642125848010,3.223,147.47,147.39,24.9208]
[1642125848210,3.223,147.47,147.41,10.173]
[1642125848612,0.51,147.47,147.41,10.423]
[1642125848811,27.56462395,147.49,147.41,10.423]
[1642125849010,3.35512395,147.49,147.41,10.683]
[1642125849210,3.35512395,147.49,147.41,78.573]
[1642125849416,3.35512395,147.49,147.41,84.573]
[1642125849814,3.35512395,147.5,147.41,84.573]
[1642125850116,3.35512395,147.5,147.41,94.353]
[1642125850313,3.61512395,147.5,147.41,94.353]
[1642125850714,3.35512395,147.5,147.41,118.1214]
[1642125850917,3.35512395,147.52,147.41,118.1214]
[1642125851315,9.60512395,147.52,147.41,118.1214]
[1642125852316,9.35512395,147.52,147.41,118.1214]
[1642125853018,6.0,147.52,147.41,118.1214]
[1642125853418,9.35512395,147.54,147.41,118.1214]
[1642125853618,33.20512395,147.55,147.41,118.1214]
[1642125853819,8.962,147.54,147.41,118.1214]
[1642125855517,2.962,147.54,147.41,118.1214]
[1642125855719,2.712,147.54,147.41,118.1214]
[1642125856119,3.35512395,147.55,147.45,67.89]
[1642125856418,5.40963526,147.57,147.52,39.0]
[1642125856619,26.4415,147.63,147.53,33.0]
[1642125856620,2.711,147.63,147.53,33.0]
[1642125856819,9.513002,147.64,147.53,70.73312636]
[1642125857021,9.513002,147.64,147.54,1.64999521]
[1642125857221,2.71,147.66,147.55,9.78]
[1642125857420,2.71,147.66,147.6,10.1591]
[1642125857619,6.0,147.66,147.61,25.22339561]
[1642125857822,9.513002,147.7,147.61,25.22339561]
[1642125857823,2.709,147.65,147.61,25.22339561]
[1642125858020,15.513002,147.7,147.61,25.47339561]
[1642125858021,0.26,147.66,147.61,25.47339561]
[1642125858220,2.959,147.65,147.61,25.47339561]
[1642125858421,2.709,147.65,147.62,10.1584]
[1642125858623,2.709,147.68,147.62,10.1584]
[1642125858823,2.709,147.7,147.63,0.07]
[1642125859053,2.708,147.71,147.63,0.07]
[1642125859251,2.708,147.71,147.64,26.74138058]
[1642125859451,2.708,147.71,147.64,27.25138058]
[1642125859652,2.708,147.71,147.67,29.18238966]
[1642125860054,2.708,147.71,147.67,29.43238966]
[1642125860652,2.958,147.71,147.67,29.43238966]
[1642125860853,2.958,147.71,147.7,31.39478932]
[1642125862356,0.51,147.71,147.7,31.39478932]
[1642125863356,0.25,147.71,147.7,31.39478932]
[1642125865058,6.31430001,147.71,147.67,0.25]
[1642125865259,6.06430001,147.71,147.67,0.25]
[1642125865458,6.31430001,147.71,147.63,10.03]
[1642125866058,12.57430001,147.71,147.64,25.78661418]
[1642125866261,6.57430001,147.71,147.65,10.1562]
[1642125866458,6.57430001,147.71,147.65,10.4062]
[1642125866659,12.57430001,147.71,147.65,10.4062]
[1642125867058,6.57430001,147.71,147.65,10.4062]
[1642125867459,12.57430001,147.71,147.65,10.4062]
[1642125867663,6.57430001,147.71,147.65,10.4062]
[1642125868762,6.31430001,147.71,147.65,10.4062]
[1642125871566,6.57430001,147.71,147.65,10.4062]
[1642125872672,6.32430001,147.71,147.65,10.4062]
[1642125873268,6.32430001,147.71,147.65,10.6662]
[1642125873467,0.26,147.71,147.65,10.6662]
[1642125873870,8.958,147.74,147.65,20.4462]
[1642125874471,6.25,147.74,147.65,20.4462]
[1642125874670,2.708,147.73,147.65,20.4462]
[1642125875072,3.87693685,147.72,147.65,20.4462]
[1642125875274,3.87693685,147.72,147.65,26.4462]
[1642125875471,4.12693685,147.72,147.65,20.4462]
[1642125876272,0.25,147.72,147.65,20.4462]
[1642125876481,0.51,147.73,147.65,20.1862]
[1642125876774,6.51,147.73,147.65,20.1862]
[1642125877175,3.87692517,147.72,147.65,20.1862]
[1642125877572,4.12692517,147.72,147.65,20.1862]
[1642125878012,10.12692517,147.72,147.65,10.03]
[1642125878210,0.25,147.72,147.65,10.03]
[1642125878405,2.958,147.72,147.65,10.03]
[1642125878604,2.708,147.72,147.65,10.03]
[1642125878806,2.958,147.72,147.65,10.03]